Cogmind - Beta 13 @@@ ROGUE MODE // 2024.04.13 @ 12:10:49 Player: bradybot Result: Destroyed by Y-45 Defender with Beam Rifle Performance ------------- Evolutions (0) 0 Regions Visited (3) 600 Robots Destroyed (19) 95 Value Destroyed (594) 594 Prototype IDs (3) 60 Alien Tech Used (0) 0 Bonus (0) 0 TOTAL SCORE: 1349 Bonus ------- None Cogmind --------- Core Integrity 0/250 Matter 300/300 Energy 106/250 System Corruption 0% Temperature Cool (42) Movement Core (1500) Ox29 Location -9/Recycling Parts ------- > --- POWER (1) -------- Ion Engine > --- PROPULSION (2) --- Aluminum Leg > --- UTILITY (2) ------ Huge Storage Unit Makeshift Light Armor Plating > --- WEAPON (2) ------- (None) > --- INVENTORY (25) --- Subdweller Power Source Aluminum Leg Flight Unit Flight Unit Scrap Engine High-capacity Storage Unit High-capacity Storage Unit Medium Matter Pod (100) Structural Scanner Sensor Array Terrain Scanner Seismic Detector EM Pulse Gun Medium Laser Medium Laser Backup Laser I Light EM Pulse Cannon Light EM Pulse Cannon Subdweller Machine Gun Battle Cannon Mining Laser Multitool Flamer Heavy Hammer Peak State ------------ > --- POWER ------------ Ion Engine Subdweller Power Source > --- PROPULSION ------- Wheel > --- UTILITY ---------- Huge Storage Unit Makeshift Light Armor Plating > --- WEAPON ----------- Powered Cannon > --- INVENTORY -------- Aluminum Leg Aluminum Leg Flight Unit Flight Unit Disposable Heat Sink Large Storage Unit High-capacity Storage Unit High-capacity Storage Unit High-capacity Storage Unit High-capacity Storage Unit Medium Matter Pod Structural Scanner Sensor Array Terrain Scanner Seismic Detector EM Pulse Gun Medium Laser Medium Laser Backup Laser I Light EM Pulse Cannon Light EM Pulse Cannon Battle Cannon Mining Laser Heavy Hammer Scrap Shield Fragment [Rating: 26] Favorites ----------- Power Ion Engine Engine Ion Engine Propulsion Aluminum Leg Leg Aluminum Leg Wheel Wheel Utility Huge Storage Unit Device Seismic Detector Storage Huge Storage Unit Protection Makeshift Light Armor Plating Weapon Grenade Launcher Energy Gun EM Pulse Gun Energy Cannon Light EM Pulse Cannon Ballistic Gun Assault Rifle Ballistic Cannon Battle Cannon Launcher Grenade Launcher Build | -11 -10 -10 -9 ------- Run | Yrd Mat Sub Rec Slots Evolved . | . . . . Power . | . . . . Propulsion . | . . . . Utility . | . . . . Weapon . | . . . . Parts Attached 28 | 6 14 8 . Power 4 | 1 . 3 . Engine 4 | 1 . 3 . Core . | . . . . Reactor . | . . . . Propulsion 9 | 2 6 1 . Treads . | . . . . Leg 5 | 2 2 1 . Wheel 4 | . 4 . . Hover . | . . . . Flight . | . . . . Utility 7 | 1 5 1 . Device 2 | . 2 . . Storage 4 | 1 3 . . Processor . | . . . . Hackware . | . . . . Protection 1 | . . 1 . Artifact . | . . . . Weapon 8 | 2 3 3 . Energy Gun 2 | 2 . . . Energy Cannon 2 | . 1 1 . Ballistic Gun 1 | . . 1 . Ballistic Cannon 1 | . . 1 . Launcher 2 | . 2 . . Special Weapon . | . . . . Impact Weapon . | . . . . Slashing Weapon . | . . . . Piercing Weapon . | . . . . Special Melee Weapon . | . . . . Unidentified Prototypes 1 | . . 1 . Parts Lost 4 | . . 2 2 Power . | . . . . Propulsion 2 | . . 1 1 Utility . | . . . . Weapon 2 | . . 1 1 Highest Loss Streak 2 | . . 1 2 To Critical Strikes . | . . . . Average Slot Usage (%) 91 | . 99 84 78 Engine 14 | . 14 15 14 Leg 11 | . 18 2 14 Wheel 12 | . 9 16 10 Device 7 | . 13 1 . Storage 13 | . 14 13 14 Protection 5 | . . 12 14 Energy Gun 2 | . 4 . . Energy Cannon 9 | . 11 7 10 Ballistic Cannon 2 | . . 6 . Launcher 9 | . 12 7 . Naked Turns . | . . . . Heaviest Build 103 | 14 93 103 98 Greatest Support 26 | 20 26 26 10 Greatest Overweight (x) 10 | . 3 10 9 Average Overweight (x) 4 | . 2 7 9 Largest Inventory Capacity 25 | 8 25 25 25 Average Capacity 22 | 7 21 25 25 Most Carried 25 | 6 25 25 25 Average Carried 21 | 3 19 24 24 Final Capacity 25 | 8 25 25 25 Final Carried 25 | 6 24 25 25 Class Distribution -------------------- 100% | Mutant Dominant Class ---------------- Mutant | -10/Materials Mutant | -10/Subcaves Mutant | -9/Recycling Resources | -11 -10 -10 -9 ----------- Run | Yrd Mat Sub Rec Matter Collected 941 | 215 313 413 . Remotely . | . . . . Salvage Created 539 | . 186 353 . Parts 40 | . 14 26 . Haulers Intercepted . | . . . . Recyclers Shooed 1 | . 1 . . Parts Field Recycled . | . . . . Retrieved Matter . | . . . . Parts Self-Destructed 11 | . . 11 . Prevented . | . . . . Kills | -11 -10 -10 -9 ------- Run | Yrd Mat Sub Rec Combat Hostiles Destroyed 15 | . 3 12 . Guns 2 | . 1 1 . Cannons 6 | . 1 5 . AOE 7 | . 1 6 . Classes Destroyed 6 | . 3 3 . Recycler 1 | . 1 . . Turret 2 | . . 2 . Watcher 1 | . 1 . . Swarmer 3 | . . 3 . Grunt 3 | . 3 . . Subdweller 9 | . . 9 . Best Kill Streak 6 | . 3 6 . Combat Bots Only 4 | . 2 4 . Max Kills in Single Turn 2 | . 1 2 . Gunslinging . | . . . . Exploded 2 | . 1 2 . Melee . | . . . . Uniques/NPCs Destroyed . | . . . . Combat | -11 -10 -10 -9 -------- Run | Yrd Mat Sub Rec Hostile Shots Fired 79 | . 12 55 12 Missed 22 | . 4 16 2 Damage Taken 1129 | . 121 865 143 Core 255 | . . 229 26 Absorbed by Shields . | . . . . Regen/Repaired (Parts) 20 | . 20 . . Core Remaining (%) 100 | 100 . . . Volleys Fired 70 | . 16 48 6 Largest 2 | . 2 2 1 Hottest 86 | . 86 86 40 Shots Fired 101 | . 20 75 6 Gun 16 | . 4 12 . Cannon 66 | . 12 48 6 Launcher 19 | . 4 15 . Special . | . . . . Kinetic 32 | . . 32 . Thermal 22 | . . 16 6 Explosive 19 | . 4 15 . Electromagnetic 28 | . 16 12 . Robot Hit Streak 9 | . 7 9 8 Robot Miss Streak 3 | . 3 2 . Penetration Max . | . . . . Secondary Targets . | . . . . Shots Hit Robots 59 | . 13 40 6 Core Hits 33 | . 10 23 . Critical Kills . | . . . . Critical Parts Destroyed . | . . . . Critical Strikes . | . . . . Melee Attacks . | . . . . Impact . | . . . . Slashing . | . . . . Piercing . | . . . . Sneak Attacks . | . . . . Combat Hostiles . | . . . . Follow-up Attacks . | . . . . Damage Inflicted 2140 | . 471 1396 273 Guns 136 | . 40 96 . Cannons 1319 | . 194 852 273 Explosions 611 | . 163 448 . Melee . | . . . . Ramming 74 | . 74 . . Kinetic 344 | . . 344 . Thermal 818 | . . 545 273 Explosive 611 | . 163 448 . Electromagnetic 293 | . 234 59 . Impact . | . . . . Slashing . | . . . . Piercing . | . . . . Highest Corruption . | . . . . Average Corruption . | . . . . Corruption Purged . | . . . . Corruption Blocked . | . . . . Overload Shots . | . . . . Overflow Damage 20 | . . . 20 Projectiles 20 | . . . 20 Explosions . | . . . . Melee . | . . . . Knockbacks 4 | . 1 3 . Impact 1 | . 1 . . Kinetic 3 | . . 3 . Secondary . | . . . . Self-Inflicted Damage 41 | . 36 5 . Shots 1 | . . 1 . Rammed 2 | . 2 . . Targets Rammed 2 | . 2 . . Kicked . | . . . . Crushed . | . . . . Highest Temperature 144 | . 144 16 126 Average Temperature 43 | . 48 7 61 Received Heat Transfer 243 | . 48 114 81 Siege Activations . | . . . . Robots Corrupted . | . . . . Combat Hostiles . | . . . . Parts Fried 1 | . 1 . . Impact Corruptions . | . . . . Robots Melted . | . . . . Combat Hostiles . | . . . . Parts Melted . | . . . . Heat Transferred . | . . . . Parts Sabotaged . | . . . . Parts Stolen . | . . . . Parts Stripped . | . . . . Power Chain Reactions . | . . . . Alert | -11 -10 -10 -9 ------- Run | Yrd Mat Sub Rec Peak Influence 128 | . 128 . . Initial . | . . . . Average 11 | . 12 . . Maximum Alert Level . | . . . . Low Security (%) 100 | 100 100 . 100 Level 1 . | . . . . Level 2 . | . . . . Level 3 . | . . . . Level 4 . | . . . . Level 5 . | . . . . High Security . | . . . . Max Security . | . . . . Squads Dispatched 3 | . 3 . . Investigation 2 | . 2 . . Extermination . | . . . . Reinforcement 1 | . 1 . . Assault . | . . . . Garrison . | . . . . Intercept . | . . . . Searches Triggered . | . . . . Construction Impeded . | . . . . Haulers Reinforced . | . . . . Active Scanning Responses . | . . . . Cargo Convoy Interrupts . | . . . . Stealth | -11 -10 -10 -9 --------- Run | Yrd Mat Sub Rec Distress Signals 1 | . 1 . . Communications Jammed . | . . . . Distress Signals . | . . . . Times Spotted 25 | . 9 15 1 Peak Tracking Total 4 | . 2 4 1 Tactical Retreats 3 | . . 3 . Traps | -11 -10 -10 -9 ------- Run | Yrd Mat Sub Rec Traps Triggered 1 | . 1 . . Indirectly . | . . . . Trap Hack Attempts . | . . . . Triggered . | . . . . Disarmed . | . . . . Reprogrammed . | . . . . Reused . | . . . . Traps Extracted . | . . . . Installed . | . . . . Triggered 1 | . 1 . . Machines | -11 -10 -10 -9 ---------- Run | Yrd Mat Sub Rec Machines Disabled 4 | . 2 2 . Max in Single Turn 1 | . 1 1 . Machines Repaired . | . . . . Machines Dismantled . | . . . . Machines Sabotaged . | . . . . Overloaded Fab Kills . | . . . . Hacking | -11 -10 -10 -9 --------- Run | Yrd Mat Sub Rec Machines Accessed 6 | . 5 1 . Terminals 4 | . 4 . . Fabricators . | . . . . Repair Stations 1 | . 1 . . Recycling Units . | . . . . Scanalyzers . | . . . . Garrison Access . | . . . . Total Hacks 21 | . 19 2 . Successful 15 | . 13 2 . Failed 6 | . 6 . . Catastrophic 1 | . 1 . . Database Lockouts . | . . . . Manual . | . . . . Terminals 16 | . 16 . . Fabricators . | . . . . Repair Stations 3 | . 3 . . Recycling Units . | . . . . Scanalyzers . | . . . . Garrison Access . | . . . . Terminal Hacks 12 | . 10 2 . Record 2 | . . 2 . Prototype ID Bank 1 | . 1 . . Emergency Access Points 1 | . 1 . . Alert Level 1 | . 1 . . Unreport Threat 1 | . 1 . . Locate Traps 1 | . 1 . . Dispatch Records 1 | . 1 . . Investigation Status 1 | . 1 . . Registered Components 1 | . 1 . . Zone Layout 2 | . 2 . . Fabricator Hacks . | . . . . Repair Station Hacks 3 | . 3 . . Scan Component 1 | . 1 . . Repair 1 | . 1 . . Refit 1 | . 1 . . Recycling Unit Hacks . | . . . . Scanalyzer . | . . . . Garrison Access Hacks . | . . . . Unauthorized Hacks . | . . . . Terminals . | . . . . Fabricators . | . . . . Repair Stations . | . . . . Recycling Units . | . . . . Scanalyzers . | . . . . Garrison Access . | . . . . Data Cores Recovered . | . . . . Used . | . . . . Hacking Detections 3 | . 3 . . Full Trace Events 1 | . 1 . . Feedback Events . | . . . . Feedback Blocked . | . . . . Robot Schematics Acquired . | . . . . Robots Built . | . . . . Authchips . | . . . . Time . | . . . . Total Robot Build Rating . | . . . . Part Schematics Acquired . | . . . . Parts Built . | . . . . Authchips . | . . . . Time . | . . . . Total Part Build Rating . | . . . . Parts Repaired 1 | . 1 . . Time 26 | . 26 . . Parts Recycled . | . . . . Recycled Matter . | . . . . Retrieved Matter . | . . . . Retrieved Components . | . . . . Parts Scanalyzed . | . . . . Part Schematics Acquired . | . . . . Parts Damaged . | . . . . Bothacking | -11 -10 -10 -9 ------------ Run | Yrd Mat Sub Rec Used RIF Installer . | . . . . Robots Hacked . | . . . . Non-combat . | . . . . Combat . | . . . . Robot Hacks Applied . | . . . . Relay Couplers Released . | . . . . Fabnet Peak Effective % . | . . . . Robots Rewired . | . . . . Allies Hacked . | . . . . Hacks Repelled . | . . . . Allies | -11 -10 -10 -9 -------- Run | Yrd Mat Sub Rec Total Allies . | . . . . Largest Group . | . . . . Highest-Rated Group . | . . . . Highest-Rated Ally . | . . . . Total Orders . | . . . . Ally Attacks . | . . . . Total Damage . | . . . . Kills . | . . . . Allies Corrupted . | . . . . Allies Melted . | . . . . Intel | -11 -10 -10 -9 ------- Run | Yrd Mat Sub Rec Robot Analysis Total . | . . . . Derelict Logs Recovered . | . . . . Drone Launches . | . . . . Drone Recoveries . | . . . . Exploration | -11 -10 -10 -9 ------------- Run | Yrd Mat Sub Rec Turns Passed 3759 | 95 1924 1707 33 Spaces Moved 1772 | 66 932 768 6 Core 5 | 5 . . . Treads . | . . . . Legs 538 | 61 477 . . Wheels 1229 | . 455 768 6 Hover . | . . . . Flight . | . . . . Fastest Speed 50 | 50 120 135 215 Average Speed 193 | 114 194 199 215 Slowest Speed 260 | 120 260 230 215 Overloaded Moves . | . . . . Propulsion Burnouts . | . . . . Robots Hopped . | . . . . Cave-ins Triggered . | . . . . Exploration Rate (%) 34 | 4 100 28 4 Regions Visited 3 Branch Regions 2 Pre-discovered Areas 1 | . . 1 . Known Exits Taken . | . . . . Unknown Exits Taken 3 | 1 1 1 . Scrap Searched . | . . . . Spaces Dug 7 | . . 7 . Terrain Destroyed 74 | . 17 57 . Melee . | . . . . Projectile 4 | . . 4 . AOE 70 | . 17 53 . Terrain Rammed . | . . . . Walls Destroyed . | . . . . Machines Disabled . | . . . . Actions | -11 -10 -10 -9 --------- Run | Yrd Mat Sub Rec Total 2009 | 82 1030 874 23 Wait 57 | 5 16 28 8 Move 1769 | 65 931 767 6 Hop . | . . . . Pick Up 53 | 6 35 11 1 Fast Attach 9 | 6 2 1 . Attach 7 | . 3 4 . Detach 1 | . . 1 . Swap 12 | . 9 3 . Drop 29 | . 16 11 2 Fire 70 | . 16 48 6 Melee . | . . . . Ram 2 | . 2 . . Kick . | . . . . Crush . | . . . . Escape Stasis . | . . . . Rewire . | . . . . Trap . | . . . . Miscellaneous . | . . . . Route ------- -11/Scrapyard -10/Materials (discovered 6 exits: [*Mat x3] / [*Min x2] / *Sub) -10/Subcaves -9/Recycling History --------- Turn | Location | Event 2 | -11/Scrapyard | Met Revision 17 8 | -11/Scrapyard | Discovered new exit (range 15) 96 | -11/Scrapyard | Entered Materials 300 | -10/Materials | Build established: Mutant 332 | -10/Materials | Discovered new exit (range 9) 574 | -10/Materials | Discovered new exit (range 14) 878 | -10/Materials | Repaired Grenade Launcher? 930 | -10/Materials | Discovered new exit (range 7) 1249 | -10/Materials | Discovered new exit (range 13) 1506 | -10/Materials | Discovered new exit (range 16) 1642 | -10/Materials | Discovered new exit (range 15) 2020 | -10/Materials | Entered Subcaves 2056 | -10/Subcaves | Discovered new exit (range 11) 2185 | -10/Subcaves | Shifting Twisted Machinery released Battle Cannon 2223 | -10/Subcaves | Shifting Twisted Machinery released Mak. Light Armor Plating 2312 | -10/Subcaves | Shifting Twisted Machinery released Sub. Power Source 2377 | -10/Subcaves | Visited Clippyterm 2384 | -10/Subcaves | Learned location of Deep Caves (-7) 2506 | -10/Subcaves | Shifting Twisted Machinery released Sub. Laser 2612 | -10/Subcaves | A swath of the cavern ceiling suddenly collapsed 2890 | -10/Subcaves | A Subdweller sparked back to life 2890 | -10/Subcaves | A Subdweller sparked back to life 2890 | -10/Subcaves | A Subdweller sparked back to life 2903 | -10/Subcaves | Core integrity fell below 50% 2973 | -10/Subcaves | Found Prototype Energy Cannon 2976 | -10/Subcaves | Identified Powered Cannon 2977 | -10/Subcaves | Attached Powered Cannon, gained temporary slot: Power 3370 | -10/Subcaves | Core integrity fell below 20% 3727 | -10/Subcaves | Entered Recycling 3733 | -9/Recycling | Found Scrap Engine 3760 | -9/Recycling | Destroyed by Y-45 Defender with Beam Rifle Last Messages --------------- 03413_ Dropped Disposable Heat Sink. 03413_ Dropped Lrg. Storage Unit. 03414_ Acquired Sub. Power Source. 03428_ Acquired 58 matter. 03434_ Acquired Multitool. 03440_ Acquired Flamer. 03520_ Subatomizers dissect the Sub. Beam Cannon. 03607_ VX-8TQ(R) destroyed. 03613_ Acquired 36 matter. A mysterious object appears at your location! LOCATION=UNKNOWN GOAL=ESCAPE 03730_ Dropped Hcp. Storage Unit. 03733_ Acquired Scrap Engine. 03741_ Y-45 Defender springs to life. 03748_ Destroyed Hvy. Assault Rifle. 03750_ Wheel destroyed. 03750_ Critical hit (Burn: +37). 03757_ R-06 Scavenger collects Hcp. Storage Unit. 03758_ Powered Cannon destroyed. Map ----- +----------------------------------------------------+ | | | | | | | | | | | | | | | | | | | | | ????????????????????????????????? | | ????????????????????????????????? | | ????????????????????????????????? | | ????????????????????????????????? | | ????????????????????????????????? | | ????????????????????????????????? | | ???????????????????????#######??? | | ??????????????????????? #??? | | ???????????????????????# #??? | | ???????????????????????# #??? | | ???????????????????????# #??? | | ???????????????????????# r! #??? | | ???????????????????????# ###? | | ???????????????????????# [#? | | ???????????????????????# [[#? | | ???????????????????????# @ [[#? | | ???????????????????????# ###? | | ???????????????????????# #??? | | ???????????????????????# Y#?? | | ???????????????????????# ##?? | | ???????????????????????# #??? | | ???????????????????????# #??? | | ???????????????????????# #??? | | ???????????????????????# #??? | | ???????????????????????# #??? | | ???????????????????????# #??? | | ???????????????????????# #??? | | ??????????????????????? #??? | | ??????????????????????? #??? | | ??????????????????????? "??? | | ???????????????????????### ????? | | ????????????????????????????????? | | ????????????????????????????????? | | ????????????????????????????????? | | ????????????????????????????????? | | ????????????????????????????????? | | ????????????????????????????????? | | ????????????????????????????????? | | ????????????????????????????????? | | ????????????????????????????????? | +----------------------------------------------------+ Best States ------------- Heat Dissipation 25 Energy Generation 20 Energy Capacity 350 Matter Stores 300 Matter Capacity 300 Sight Range 16 Terrain Scan Density 10 Armor Coverage 100 Evasion (%) 55 Item Schematics ----------------- None Robot Schematics ------------------ None Fabricated ------------ Nothing Alien Tech Used ----------------- None Achievements -------------- Everything Is Under Control Risk Taker Challenges ------------ None Game ------ Seed LinkedChargeWings Manual? 0 Play Time 00:34:28 Cumulative 3.0 hours Start 2024.04.07 @ 16:13:34 End 2024.04.13 @ 12:10:49 Sessions 2 Manual Loads 0 Difficulty Rogue Special Mode None Game No. 4 Rogue 4 Adventurer 0 Explorer 0 Win Type - Total 0 Types 0/0/0/0/0/0/0/0/0 Lore% 2 Gallery% 5 Achievement% 6 Wizard Run 0 Options --------- Layout 0 ASCII 0 Keyboard 0 Movement Mouse Keybinds 0 Fullscreen 2 Font 24/Smallcaps Map View 76x50 Zoom Use 0% Tactical HUD 1 Map Filters NONE Filters NONE Steam 1 RUN: db1dee8c-2485-4280-98dd-ad9537684465